bitfinex/quotes_ETHUSD_20250906
["timestamp","ask_amount","ask_price","bid_price","bid_amount"]
[1757197057793,282.81103557,4278.7,4278.6,10.94590736]
[1757197058187,280.47387709,4278.7,4278.6,10.94590736]
[1757197058801,281.70387709,4278.7,4278.6,10.94590736]
[1757197058991,276.31396912,4278.7,4278.6,44.04152046]
[1757197060009,276.31396912,4278.7,4278.6,14.04152046]
[1757197060221,277.54396912,4278.7,4278.6,44.04152046]
[1757197061133,277.54396912,4278.7,4278.6,14.04152046]
[1757197061433,277.54396912,4278.7,4278.6,44.04152046]
[1757197061610,278.77396912,4278.7,4278.6,44.04152046]
[1757197062689,278.77396912,4278.7,4278.6,44.74278191]
[1757197063221,280.00396912,4278.7,4278.6,44.74278191]
[1757197063424,280.00396912,4278.7,4278.6,44.74678191]
[1757197064696,281.23396912,4278.7,4278.6,44.74678191]
[1757197065241,281.23396912,4278.7,4278.6,14.74678191]
[1757197065444,281.23396912,4278.7,4278.6,44.74678191]
[1757197066142,282.46396912,4278.7,4278.6,44.74678191]
[1757197067447,283.69396912,4278.7,4278.6,44.74678191]
[1757197068950,284.92396912,4278.7,4278.6,44.74678191]
[1757197070246,286.15396912,4278.7,4278.6,44.74678191]
[1757197071257,286.15396912,4278.7,4278.6,44.30438191]
[1757197071756,287.38396912,4278.7,4278.6,44.30438191]
[1757197072060,290.40696912,4278.7,4278.6,43.98738191]
[1757197073041,291.63696912,4278.7,4278.6,43.98738191]
[1757197073926,291.19446912,4278.7,4278.6,43.98738191]
[1757197074255,288.61396912,4278.7,4278.6,43.98738191]
[1757197074458,289.84396912,4278.7,4278.6,43.98738191]
[1757197075848,291.07396912,4278.7,4278.6,43.98738191]
[1757197076030,291.37596912,4278.7,4278.6,43.98738191]
[1757197076239,293.65446912,4278.7,4278.6,43.98738191]
[1757197077072,294.09696912,4278.7,4278.6,43.98738191]
[1757197077234,295.32696912,4278.7,4278.6,43.98738191]
[1757197077966,294.88446912,4278.7,4278.6,43.98738191]
[1757197078557,296.11446912,4278.7,4278.6,43.98738191]
[1757197079864,293.53396912,4278.7,4278.6,43.98738191]
[1757197080052,294.76396912,4278.7,4278.6,43.98738191]
[1757197081585,295.99396912,4278.7,4278.6,13.98738191]
[1757197082941,297.22396912,4278.7,4278.6,13.98738191]
[1757197083676,299.80446912,4278.7,4278.6,13.98738191]
[1757197084497,301.03446912,4278.7,4278.6,13.98738191]
[1757197084979,298.45396912,4278.7,4278.6,43.98738191]
[1757197086188,299.68396912,4278.7,4278.6,43.98738191]
[1757197087597,300.91396912,4278.7,4278.6,43.98738191]
[1757197088854,300.91396912,4278.7,4278.6,44.27388191]
[1757197088855,302.14396912,4278.7,4278.6,44.27388191]
[1757197089057,297.32944016,4278.7,4278.6,47.93578191]
[1757197089381,297.32944016,4278.7,4278.6,40.37488191]
[1757197089567,297.32944016,4278.7,4278.6,44.27188191]
[1757197090298,298.55944016,4278.7,4278.6,44.71198191]
[1757197091583,299.78944016,4278.7,4278.6,44.71198191]
[1757197092905,301.01944016,4278.7,4278.6,44.71198191]
[1757197094132,301.01944016,4278.7,4278.6,14.71198191]
[1757197094286,302.24944016,4278.7,4278.6,44.71198191]
[1757197095554,302.24944016,4278.7,4278.6,44.27188191]
[1757197095750,303.47944016,4278.7,4278.6,44.27188191]
[1757197096254,303.76874016,4278.7,4278.6,43.98538191]
[1757197096442,306.22784016,4278.7,4278.6,43.98538191]
[1757197097144,307.45784016,4278.7,4278.6,43.98538191]
[1757197097530,307.45784016,4278.7,4278.6,40.08838191]
[1757197097730,307.45784016,4278.7,4278.6,11.64716881]
[1757197097731,310.17494813,4278.7,4278.6,11.64716881]
[1757197098521,311.40494813,4278.7,4278.6,11.64716881]
[1757197099467,309.13704016,4278.7,4278.6,11.64716881]
[1757197099834,310.36704016,4278.7,4278.6,11.64716881]
[1757197101423,311.59704016,4278.7,4278.6,11.64716881]
[1757197102635,312.82704016,4278.7,4278.6,11.64716881]
[1757197103979,314.05704016,4278.7,4278.6,11.64716881]
[1757197104145,316.32494813,4278.7,4278.6,11.64716881]
[1757197105466,317.55494813,4278.7,4278.6,11.64716881]
[1757197106681,318.78494813,4278.7,4278.6,11.64716881]
[1757197108004,320.01494813,4278.7,4278.6,11.64716881]
[1757197109338,321.24494813,4278.7,4278.6,11.64716881]
[1757197110645,322.47494813,4278.7,4278.6,11.64716881]
[1757197111958,323.70494813,4278.7,4278.6,11.64716881]
[1757197113491,319.46944016,4278.7,4278.6,12.39796881]
[1757197113697,319.46944016,4278.7,4278.6,44.73518191]
[1757197114674,320.69944016,4278.7,4278.6,44.73518191]
[1757197115195,320.69944016,4278.7,4278.6,47.00718191]
[1757197116076,320.69944016,4278.7,4278.6,44.73518191]
[1757197116282,321.92944016,4278.7,4278.6,44.73518191]
[1757197116667,321.92944016,4278.7,4278.6,44.29508191]
[1757197117778,323.15944016,4278.7,4278.6,44.29508191]
[1757197119165,324.38944016,4278.7,4278.6,44.29508191]
[1757197120561,325.61944016,4278.7,4278.6,44.29508191]
[1757197121997,326.84944016,4278.7,4278.6,44.29508191]
[1757197123797,328.07944016,4278.7,4278.6,44.29508191]
[1757197125897,329.30944016,4278.7,4278.6,44.29508191]
[1757197127267,330.53944016,4278.7,4278.6,44.29508191]
[1757197128807,331.76944016,4278.7,4278.6,44.29508191]
[1757197130598,332.99944016,4278.7,4278.6,44.29508191]
[1757197131803,334.22944016,4278.7,4278.6,44.29508191]
[1757197133198,335.45944016,4278.7,4278.6,44.29508191]
[1757197133690,335.45944016,4278.7,4278.6,46.08908191]
[1757197134857,336.68944016,4278.7,4278.6,46.08908191]
[1757197136536,337.91944016,4278.7,4278.6,46.08908191]
[1757197137433,337.91944016,4278.7,4278.6,46.52458191]
[1757197137931,339.14944016,4278.7,4278.6,46.52458191]
[1757197139337,340.37944016,4278.7,4278.6,46.08908191]
[1757197139705,340.37944016,4278.7,4278.6,45.77838191]
[1757197139937,343.56564016,4278.7,4278.6,45.77838191]
[1757197140738,344.79564016,4278.7,4278.6,45.77838191]
[1757197141881,344.36574016,4278.7,4278.6,45.77838191]
[1757197142079,345.59574016,4278.7,4278.6,45.77838191]
[1757197143590,346.82574016,4278.7,4278.6,45.77838191]
[1757197144793,348.05574016,4278.7,4278.6,45.77838191]
[1757197145247,345.29944016,4278.7,4278.6,45.77838191]
[1757197145782,345.29944016,4278.7,4278.6,46.08918191]
[1757197146370,346.52944016,4278.7,4278.6,46.08918191]
[1757197146547,346.52944016,4278.7,4278.6,46.52468191]
[1757197147886,347.75944016,4278.7,4278.6,46.52468191]
[1757197148994,347.75944016,4278.7,4278.6,48.86298191]
[1757197149293,348.98944016,4278.7,4278.6,48.86298191]
[1757197149789,348.98944016,4278.7,4278.6,49.42167732]
[1757197150091,348.98944016,4278.7,4278.6,49.13386236]
[1757197150291,268.70142573,4278.7,4278.6,53.87498191]
[1757197150542,269.44752305,4278.7,4278.6,49.65498191]
[1757197151211,265.83662633,4278.7,4278.6,49.65498191]
[1757197151585,138.326558,4278.7,4278.6,49.92586236]
[1757197151799,139.556558,4278.7,4278.6,52.29978346]
[1757197152097,121.80777131,4278.7,4278.6,52.29978346]
[1757197152399,121.80777131,4278.7,4278.6,50.32192778]
[1757197152400,35.42435091,4278.7,4278.6,50.32192778]
[1757197152590,34.14684456,4278.7,4278.6,50.32192778]
[1757197152967,35.02638301,4278.7,4278.6,50.32192778]
[1757197153171,31.41548629,4278.7,4278.6,50.32192778]
[1757197153388,31.06502474,4278.7,4278.6,50.32192778]
[1757197153615,30.13797994,4278.7,4278.6,50.32192778]
[1757197153788,29.78751839,4278.7,4278.6,50.32192778]
[1757197154209,25.82625835,4278.7,4278.6,50.32192778]
[1757197154717,24.54885023,4278.7,4278.6,50.32192778]
[1757197154889,25.77885023,4278.7,4278.6,50.32192778]
[1757197155091,25.42848691,4278.7,4278.6,50.32192778]
[1757197155312,21.81759019,4278.7,4278.6,52.41523512]
[1757197155520,21.46722687,4278.7,4278.6,52.41523512]
[1757197155721,20.54018207,4278.7,4278.6,50.32192778]
[1757197155884,20.18981875,4278.7,4278.6,50.32192778]
[1757197156085,21.41981875,4278.7,4278.6,50.32192778]
[1757197156394,18.0138473,4278.7,4278.6,52.41449575]
[1757197156597,16.73643918,4278.7,4278.6,52.41449575]
[1757197157019,16.38607586,4278.7,4278.6,52.41449575]
[1757197157316,16.38607586,4278.7,4278.6,42.72273678]
[1757197157525,16.38607586,4278.7,4278.6,40.63016881]
[1757197157526,17.61607586,4278.7,4278.6,40.63016881]
[1757197157732,17.61607586,4278.7,4278.6,43.63016881]
[1757197158014,17.61607586,4278.7,4278.6,44.42216881]
[1757197158691,18.84607586,4278.7,4278.6,44.42216881]
[1757197159025,19.15767586,4278.7,4278.6,39.42836881]
[1757197159224,21.87447586,4278.7,4278.6,40.31936881]
[1757197159678,21.87447586,4278.7,4278.6,43.31936881]
[1757197159879,21.87447586,4278.7,4278.6,44.11136881]
[1757197160425,23.10447586,4278.7,4278.6,44.11136881]
[1757197161902,24.33447586,4278.7,4278.6,44.11136881]
[1757197162312,24.33447586,4278.7,4278.6,44.22816881]
[1757197163626,25.56447586,4278.7,4278.6,44.22816881]
[1757197164799,25.56447586,4278.7,4278.6,14.22816881]
[1757197165123,26.79447586,4278.7,4278.6,44.22816881]
[1757197165575,26.34427586,4278.7,4278.6,44.22816881]
[1757197165877,23.76607586,4278.7,4278.6,44.22816881]
[1757197166432,24.99607586,4278.7,4278.6,44.22816881]
[1757197167847,26.53767586,4278.7,4278.6,44.22816881]
[1757197168154,29.25447586,4278.7,4278.6,44.22816881]
[1757197169432,30.48447586,4278.7,4278.6,44.22816881]
[1757197170867,31.71447586,4278.7,4278.6,44.22816881]
[1757197171069,28.68607586,4278.7,4278.6,44.22816881]
[1757197171394,28.68607586,4278.7,4278.6,44.53056881]
[1757197172170,29.91607586,4278.7,4278.6,44.53056881]
[1757197173569,31.14607586,4278.7,4278.6,44.53056881]
[1757197174092,31.14607586,4278.7,4278.6,14.53056881]
[1757197174300,31.14607586,4278.7,4278.6,44.53056881]
[1757197175500,32.37607586,4278.7,4278.6,44.53056881]
[1757197176698,33.60607586,4278.7,4278.6,44.53056881]
[1757197178712,34.83607586,4278.7,4278.6,44.53056881]
[1757197179509,34.83707586,4278.7,4278.6,44.53056881]
[1757197180099,36.06707586,4278.7,4278.6,44.53056881]
[1757197183629,38.52707586,4278.7,4278.6,44.53056881]
[1757197184665,38.52707586,4278.7,4278.6,44.22816881]
[1757197184827,39.75707586,4278.7,4278.6,44.22816881]
[1757197186654,40.98707586,4278.7,4278.6,44.22816881]
[1757197188028,42.21707586,4278.7,4278.6,44.22816881]
[1757197189820,43.44707586,4278.7,4278.6,44.22816881]
[1757197190351,43.44707586,4278.7,4278.6,44.53656881]
[1757197190557,43.44707586,4278.7,4278.6,44.96676881]
[1757197191256,43.44707586,4278.7,4278.6,44.53656881]
[1757197191556,44.67707586,4278.7,4278.6,44.53656881]
[1757197193033,45.90707586,4278.7,4278.6,44.53656881]
[1757197193459,45.90707586,4278.7,4278.6,14.53656881]
[1757197193674,45.90707586,4278.7,4278.6,44.22816881]
[1757197194415,47.13707586,4278.7,4278.6,44.22816881]
[1757197196758,48.36707586,4278.7,4278.6,44.22816881]
[1757197197266,48.36707586,4278.7,4278.6,44.53656881]
[1757197198263,49.59707586,4278.7,4278.6,44.53656881]
[1757197198562,49.59707586,4278.7,4278.6,14.53656881]
[1757197198747,49.59707586,4278.7,4278.6,44.53656881]
[1757197198938,49.59707586,4278.7,4278.6,44.22816881]
[1757197199963,49.90187586,4278.7,4278.6,44.22816881]
[1757197200174,53.52837586,4278.7,4278.6,44.22816881]
[1757197201565,52.05707586,4278.7,4278.6,44.22816881]
[1757197203052,52.36187586,4278.7,4278.6,44.22816881]
[1757197203249,55.98837586,4278.7,4278.6,44.22816881]
[1757197203651,56.42597586,4278.7,4278.6,44.22816881]
[1757197204840,57.65597586,4278.7,4278.6,44.22816881]
[1757197205473,57.21837586,4278.7,4278.6,44.22816881]
[1757197205976,57.21837586,4278.7,4278.6,46.56538191]
[1757197205977,54.51707586,4278.7,4278.6,46.56538191]
[1757197206274,55.74707586,4278.7,4278.6,46.56538191]
[1757197206853,55.74707586,4278.7,4278.6,44.22816881]
[1757197208194,56.97707586,4278.7,4278.6,44.22816881]
[1757197208891,56.97707586,4278.7,4278.6,14.22816881]
[1757197209054,56.97707586,4278.7,4278.6,44.22816881]
[1757197209855,58.20707586,4278.7,4278.6,44.22816881]
[1757197211805,59.43707586,4278.7,4278.6,44.22816881]
[1757197212997,59.43707586,4278.7,4278.6,46.56538191]
[1757197213191,60.66707586,4278.7,4278.6,46.56538191]
[1757197213393,60.66707586,4278.7,4278.6,46.86728191]
[1757197214466,60.66707586,4278.7,4278.6,44.53006881]
[1757197214664,61.89707586,4278.7,4278.6,46.86728191]
[1757197215259,61.89707586,4278.7,4278.6,16.86728191]
[1757197215460,61.89707586,4278.7,4278.6,46.86728191]
[1757197216209,63.12707586,4278.7,4278.6,46.86728191]
[1757197216880,63.12707586,4278.7,4278.6,44.53006881]
[1757197217479,64.35707586,4278.7,4278.6,16.86728191]
[1757197217685,64.35707586,4278.7,4278.6,46.56538191]
[1757197218007,64.35707586,4278.7,4278.6,44.22816881]
[1757197218668,64.35707586,4278.7,4278.6,46.56538191]
[1757197218867,65.58707586,4278.7,4278.6,46.56538191]
[1757197220626,65.58707586,4278.7,4278.6,16.56538191]
[1757197220799,66.81707586,4278.7,4278.6,46.56538191]
[1757197222417,66.81707586,4278.7,4278.6,46.86728191]
[1757197222418,68.04707586,4278.7,4278.6,46.86728191]
[1757197223681,69.27707586,4278.7,4278.6,16.86728191]
[1757197223893,69.27707586,4278.7,4278.6,46.86728191]
[1757197225314,70.50707586,4278.7,4278.6,46.86728191]
[1757197226510,71.73707586,4278.7,4278.6,46.86728191]
[1757197226675,71.73707586,4278.7,4278.6,44.53006881]
[1757197226880,71.73707586,4278.7,4278.6,46.86728191]
[1757197228183,72.96707586,4278.7,4278.6,46.86728191]
[1757197228513,72.96707586,4278.7,4278.6,46.56538191]
[1757197228823,72.96707586,4278.7,4278.6,16.56538191]
[1757197229024,72.96707586,4278.7,4278.6,46.56538191]
[1757197229181,72.96707586,4278.7,4278.6,46.86728191]
[1757197229821,74.19707586,4278.7,4278.6,46.86728191]
[1757197230809,74.19707586,4278.7,4278.6,47.58726236]
[1757197231011,74.19707586,4278.7,4278.6,54.27166236]
[1757197231213,19.19548755,4278.7,4278.6,50.22267732]
[1757197231523,19.08936818,4278.7,4278.6,50.68142778]
[1757197231723,17.05836957,4278.7,4278.6,52.08342778]
[1757197232023,11.01934554,4278.7,4278.6,52.08342778]
[1757197232325,0.001,4280.0,4279.1,6.12894001]
[1757197232622,1e-08,4279.4,4279.3,3.12883079]
[1757197232773,0.90557939,4279.8,4279.7,6.12861237]
[1757197233113,0.90557939,4279.8,4279.7,44.65420404]
[1757197233427,0.90557939,4279.8,4279.7,42.56061237]
[1757197233579,0.90557939,4279.8,4279.7,42.55961237]
[1757197235480,2.13557939,4279.8,4279.7,42.55961237]
[1757197236280,2.13557939,4279.8,4279.7,38.22451237]
[1757197236481,4.50027939,4279.8,4279.7,42.11051237]
[1757197236720,2.13557939,4279.8,4279.7,42.11051237]
[1757197237017,3.36557939,4279.8,4279.7,42.11051237]
[1757197237216,3.36557939,4279.8,4279.7,42.55961237]
[1757197237719,5.73027939,4279.8,4279.7,42.11051237]
[1757197238022,3.01531833,4279.8,4279.7,42.11051237]
[1757197238203,4.24531833,4279.8,4279.7,42.11051237]
[1757197239520,6.61001833,4279.8,4279.7,41.80861237]
[1757197239819,7.84001833,4279.8,4279.7,42.11051237]
[1757197239980,5.47531833,4279.8,4279.7,42.11051237]
[1757197241119,6.70531833,4279.8,4279.7,12.22731237]
[1757197241620,6.70531833,4279.8,4279.7,42.22731237]
[1757197242122,8.97101833,4279.8,4279.7,42.22731237]
[1757197242682,10.20101833,4279.8,4279.7,42.22731237]
[1757197244205,11.43101833,4279.8,4279.7,42.22731237]
[1757197245109,11.74701833,4279.8,4279.7,41.92541237]
[1757197245315,11.74801833,4279.8,4279.7,41.92541237]
[1757197245492,12.66201833,4279.8,4279.7,41.92541237]
[1757197245832,10.39631833,4279.8,4279.7,42.66491237]
[1757197245998,10.39631833,4279.8,4279.7,43.22360778]
[1757197246405,10.39631833,4279.8,4279.7,47.44360778]
[1757197246818,11.62631833,4279.8,4279.7,47.44360778]
[1757197248117,12.85631833,4279.8,4279.7,47.44360778]
[1757197249636,14.08631833,4279.8,4279.7,47.44360778]
[1757197250511,14.08631833,4279.8,4279.7,48.14445639]
[1757197251031,15.31631833,4279.8,4279.7,48.14445639]
[1757197251334,15.31631833,4279.8,4279.7,18.14445639]
[1757197251500,15.31631833,4279.8,4279.7,48.14445639]
[1757197252429,16.54631833,4279.8,4279.7,48.14445639]
[1757197253824,17.77631833,4279.8,4279.7,48.14445639]
[1757197254536,17.77631833,4279.8,4279.7,47.85664143]
[1757197255094,19.00631833,4279.8,4279.7,47.85664143]
[1757197256128,19.00631833,4279.8,4279.7,47.58576098]
[1757197256599,20.23631833,4279.8,4279.7,47.58576098]
[1757197258243,21.46631833,4279.8,4279.7,47.58576098]
[1757197259498,22.69631833,4279.8,4279.7,47.58576098]
[1757197259704,22.69631833,4279.8,4279.7,54.31076098]
[1757197260342,22.69631833,4279.8,4279.7,55.96125265]
[1757197260719,25.75417726,4279.8,4279.7,55.96125265]
[1757197261547,23.48847726,4279.8,4279.7,54.31076098]
[1757197262338,24.71847726,4279.8,4279.7,54.31076098]
[1757197263877,25.94847726,4279.8,4279.7,54.31076098]
[1757197264563,25.94847726,4279.8,4279.7,59.91476098]
[1757197265476,27.17847726,4279.8,4279.7,59.91476098]
[1757197266832,28.40847726,4279.8,4279.7,59.91476098]
[1757197268400,29.63847726,4279.8,4279.7,59.91476098]
[1757197268754,32.22017726,4279.8,4279.7,59.17526098]
[1757197268936,32.22017726,4279.8,4279.7,59.17226098]
[1757197269298,32.67657726,4279.8,4279.7,59.17226098]
[1757197269633,33.90657726,4279.8,4279.7,61.26911621]
[1757197269972,33.90657726,4279.8,4279.7,59.17226098]
[1757197270731,33.45017726,4279.8,4279.7,59.17226098]
[1757197271135,34.68017726,4279.8,4279.7,59.17226098]
[1757197272338,34.68017726,4279.8,4279.7,60.57426098]
[1757197272533,35.91017726,4279.8,4279.7,59.17226098]
[1757197273177,33.32847726,4279.8,4279.7,59.48716098]
[1757197273472,33.32847726,4279.8,4279.7,60.50975639]
[1757197273853,34.55847726,4279.8,4279.7,60.50975639]
[1757197274176,34.55847726,4279.8,4279.7,60.04585639]
[1757197274524,0.001,4280.0,4279.7,60.04585639]
[1757197274525,1e-08,4279.9,4279.8,6.68725319]
[1757197274641,0.001,4280.3,4280.2,3.12833942]
[1757197274968,0.001,4280.3,4280.2,40.01133942]
[1757197275178,0.001,4280.3,4280.2,45.71091108]
[1757197275343,0.001,4280.3,4280.2,45.24701108]
[1757197275538,0.001,4280.3,4280.2,45.42466721]
[1757197276885,1.231,4280.3,4280.2,45.42466721]
[1757197277444,1.231,4280.3,4280.2,45.69554766]
[1757197278184,2.461,4280.3,4280.2,45.69554766]
[1757197278345,2.461,4280.3,4280.2,46.44726262]
[1757197279872,3.691,4280.3,4280.2,46.44726262]
[1757197281256,4.921,4280.3,4280.2,46.44726262]
[1757197281660,7.2712,4280.3,4280.2,45.42466721]
[1757197282246,4.921,4280.3,4280.2,47.51769893]
[1757197282474,6.151,4280.3,4280.2,47.51769893]
[1757197282884,8.5012,4280.3,4280.2,47.51769893]
[1757197283255,8.8021,4280.3,4280.2,47.20279893]
[1757197283453,8.8021,4280.3,4280.2,46.40979893]
[1757197283454,9.2344,4280.3,4280.2,46.40979893]
[1757197283655,9.2344,4280.3,4280.2,44.31676721]
[1757197283856,10.4644,4280.3,4280.2,45.10876721]
[1757197284260,10.4644,4280.3,4280.2,45.22556721]
[1757197285385,11.2621,4280.3,4280.2,45.22556721]
[1757197286753,12.4921,4280.3,4280.2,45.22556721]
[1757197288051,13.7221,4280.3,4280.2,45.22556721]
[1757197289281,13.7221,4280.3,4280.2,47.01856721]
[1757197289488,14.9521,4280.3,4280.2,47.01856721]
[1757197290187,14.9521,4280.3,4280.2,42.79856721]
[1757197290880,16.1821,4280.3,4280.2,42.79856721]
[1757197291588,16.6144,4280.3,4280.2,42.79856721]
[1757197292596,17.8444,4280.3,4280.2,42.79856721]
[1757197292769,17.4121,4280.3,4280.2,42.79856721]
[1757197293786,17.8444,4280.3,4280.2,42.79856721]
[1757197293996,19.0744,4280.3,4280.2,48.40156721]
[1757197295498,20.3044,4280.3,4280.2,48.40156721]
[1757197296881,21.1021,4280.3,4280.2,48.40156721]
[1757197297631,21.1021,4280.3,4280.2,18.40156721]
[1757197298031,21.1021,4280.3,4280.2,48.40156721]
[1757197298032,20.8012,4280.3,4280.2,48.40156721]
[1757197298394,22.0312,4280.3,4280.2,48.40156721]
[1757197298825,22.0312,4280.3,4280.2,55.12556721]
[1757197299809,23.2612,4280.3,4280.2,55.12556721]
[1757197302329,24.4912,4280.3,4280.2,55.12556721]
[1757197302689,24.4912,4280.3,4280.2,25.12556721]
[1757197303103,24.4912,4280.3,4280.2,55.12556721]
[1757197303700,25.7212,4280.3,4280.2,55.12556721]
[1757197303916,25.7212,4280.3,4280.2,57.21859893]
[1757197304226,25.7212,4280.3,4280.2,55.12556721]
[1757197305129,26.9512,4280.3,4280.2,55.12556721]
[1757197305713,26.9512,4280.3,4280.2,59.34556721]
[1757197306105,27.2603,4280.3,4280.2,59.34556721]
[1757197307150,27.2603,4280.3,4280.2,55.46356721]
[1757197307353,28.9593,4280.3,4280.2,59.34456721]
[1757197307554,28.1812,4280.3,4280.2,59.34456721]
[1757197308054,25.831,4280.3,4280.2,59.92068217]
[1757197308699,27.061,4280.3,4280.2,59.92068217]
[1757197309117,29.3242,4280.3,4280.2,59.92068217]
[1757197310440,30.5542,4280.3,4280.2,59.63286721]
[1757197311330,30.5542,4280.3,4280.2,61.72589893]
[1757197312053,31.7842,4280.3,4280.2,59.63286721]
[1757197312272,31.7842,4280.3,4280.2,61.72589893]
[1757197313026,29.521,4280.3,4280.2,61.72589893]
[1757197313229,29.521,4280.3,4280.2,60.65521003]
[1757197313448,30.751,4280.3,4280.2,60.65521003]
[1757197314054,30.751,4280.3,4280.2,30.65521003]
[1757197314249,30.751,4280.3,4280.2,60.65521003]
[1757197315427,31.981,4280.3,4280.2,60.65521003]
[1757197316234,31.981,4280.3,4280.2,62.74961771]
[1757197317265,33.211,4280.3,4280.2,32.74961771]
[1757197317438,33.211,4280.3,4280.2,62.74961771]
[1757197317842,0.001,4280.7,4280.3,3.792]
[1757197318044,2.16831302,4281.1,4281.0,3.12790282]
[1757197318260,2.16831302,4281.1,4281.0,42.08920282]
[1757197319430,0.001,4281.2,4281.1,6.12784826]
[1757197319638,0.001,4281.2,4281.1,44.22784826]
[1757197319843,1.231,4281.2,4281.1,44.51614826]
[1757197320167,3.4942,4281.2,4281.1,44.51614826]
[1757197320545,3.4942,4281.2,4281.1,44.22784826]
[1757197320746,3.05649301,4281.2,4281.1,44.22784826]
[1757197321186,4.28649301,4281.2,4281.1,44.22784826]
[1757197322065,4.28649301,4281.2,4281.1,44.51614826]
[1757197322355,2.02329301,4281.2,4281.1,44.51614826]
[1757197322560,3.1193401,4281.2,4281.1,44.97764826]
[1757197322770,2.97864455,4281.2,4281.1,44.97764826]
[1757197323283,1.231,4281.7,4281.2,37.5297937]
[1757197323585,1.231,4281.7,4281.2,43.96483973]
[1757197323788,1.231,4281.7,4281.2,44.9537003]
[1757197323953,1.231,4281.3,4281.2,44.9537003]
[1757197324288,1.231,4281.3,4281.2,45.1874003]
[1757197324454,1.231,4281.3,4281.2,44.4922003]
[1757197324784,3.4942,4281.3,4281.2,44.2039003]
[1757197325258,4.7242,4281.3,4281.2,42.11035427]
[1757197325458,4.7242,4281.3,4281.2,12.11035427]
[1757197325658,4.7242,4281.3,4281.2,42.11035427]
[1757197326448,4.7242,4281.3,4281.2,46.33035427]
[1757197326684,4.7242,4281.3,4281.2,106.33035427]
[1757197326685,5.9542,4281.3,4281.2,106.33035427]
[1757197327284,5.60407303,4281.3,4281.2,104.92835427]
[1757197327851,5.60407303,4281.3,4281.2,105.21665427]
[1757197328051,5.60407303,4281.3,4281.2,105.33265427]
[1757197328052,6.83407303,4281.3,4281.2,105.33265427]
[1757197329393,8.06407303,4281.3,4281.2,105.33265427]
[1757197329545,8.06407303,4281.3,4281.2,75.33265427]
[1757197329751,8.06407303,4281.3,4281.2,105.33265427]
[1757197330067,8.37927303,4281.3,4281.2,105.04435427]
[1757197330552,9.60927303,4281.3,4281.2,15.04435427]
[1757197330752,9.29407303,4281.3,4281.2,45.33825427]
[1757197331691,9.29407303,4281.3,4281.2,105.33825427]
[1757197332675,10.52407303,4281.3,4281.2,75.33825427]
[1757197332882,10.52407303,4281.3,4281.2,105.33825427]
[1757197333996,11.75407303,4281.3,4281.2,105.33825427]
[1757197335676,12.98507303,4281.3,4281.2,105.33825427]
[1757197336793,12.98507303,4281.3,4281.2,75.33825427]
[1757197336969,14.21507303,4281.3,4281.2,105.33825427]
[1757197337595,14.21507303,4281.3,4281.2,45.33825427]
[1757197338366,15.44507303,4281.3,4281.2,45.33825427]
[1757197338782,15.44507303,4281.3,4281.2,45.04435427]
[1757197339781,16.67507303,4281.3,4281.2,45.04435427]
[1757197341206,17.90507303,4281.3,4281.2,45.04435427]
[1757197341968,18.22027303,4281.3,4281.2,45.04435427]
[1757197343017,19.45027303,4281.3,4281.2,45.04435427]
[1757197343321,19.45027303,4281.3,4281.2,47.1379003]
[1757197343322,19.13507303,4281.3,4281.2,47.1379003]
[1757197344335,20.36507303,4281.3,4281.2,47.1379003]
[1757197345430,20.36507303,4281.3,4281.2,45.04435427]
[1757197345601,21.59507303,4281.3,4281.2,45.33825427]
[1757197347121,22.82507303,4281.3,4281.2,45.33825427]
[1757197348627,24.37027303,4281.3,4281.2,45.04435427]
[1757197348851,24.80237303,4281.3,4281.2,36.94435427]
[1757197349012,24.80237303,4281.3,4281.2,37.03035427]
[1757197349346,24.80237303,4281.3,4281.2,36.86614797]
[1757197349544,24.80237303,4281.3,4281.2,39.86614797]
[1757197349759,24.80237303,4281.3,4281.2,37.65814797]
[1757197349958,26.03237303,4281.3,4281.2,40.65814797]
[1757197350114,26.03237303,4281.3,4281.2,37.65814797]
[1757197350459,26.03237303,4281.3,4281.2,40.65814797]
[1757197351953,27.26237303,4281.3,4281.2,40.65814797]
[1757197352840,26.83027303,4281.3,4281.2,40.65814797]
[1757197353046,26.83027303,4281.3,4281.2,40.92902842]
[1757197353346,28.49237303,4281.3,4281.2,40.92902842]
[1757197354213,28.49237303,4281.3,4281.2,46.53002842]
[1757197354615,29.72237303,4281.3,4281.2,46.53002842]
[1757197356645,30.95237303,4281.3,4281.2,46.53002842]
[1757197358276,32.18237303,4281.3,4281.2,46.53002842]
[1757197358569,32.18237303,4281.3,4281.2,16.53002842]
[1757197358768,32.18237303,4281.3,4281.2,46.53002842]
[1757197359089,32.18237303,4281.3,4281.2,57.47202842]
[1757197359687,33.41237303,4281.3,4281.2,57.47202842]
[1757197360040,33.41237303,4281.3,4281.2,57.20114797]
[1757197361382,34.64237303,4281.3,4281.2,57.20114797]
[1757197361676,34.64237303,4281.3,4281.2,27.20114797]
[1757197361838,34.64237303,4281.3,4281.2,57.20114797]
[1757197363282,35.87237303,4281.3,4281.2,57.20114797]
[1757197364594,37.10237303,4281.3,4281.2,57.20114797]
[1757197365236,36.67027303,4281.3,4281.2,57.20114797]
[1757197366553,37.90027303,4281.3,4281.2,57.20114797]
[1757197367480,35.63707303,4281.3,4281.2,57.20114797]
[1757197367668,35.32187303,4281.3,4281.2,57.20114797]
[1757197368173,36.55187303,4281.3,4281.2,57.20114797]
[1757197369578,37.78187303,4281.3,4281.2,57.20114797]
[1757197370377,38.09847303,4281.3,4281.2,57.20114797]
[1757197370743,39.32847303,4281.3,4281.2,57.20114797]
[1757197371270,41.62347303,4281.3,4281.2,57.20114797]
[1757197372090,41.62347303,4281.3,4281.2,27.20114797]
[1757197372384,42.85347303,4281.3,4281.2,57.20114797]
[1757197373072,42.85347303,4281.3,4281.2,27.20114797]
[1757197373389,42.85347303,4281.3,4281.2,57.20114797]
[1757197373578,44.08347303,4281.3,4281.2,57.20114797]
[1757197374387,44.08347303,4281.3,4281.2,49.10314797]
[1757197374690,44.51827303,4281.3,4281.2,52.98014797]
[1757197374889,45.74827303,4281.3,4281.2,52.98014797]
[1757197376452,46.54347303,4281.3,4281.2,52.98014797]
[1757197377491,46.54347303,4281.3,4281.2,22.98014797]
[1757197377645,46.54347303,4281.3,4281.2,52.98014797]
[1757197377847,47.77347303,4281.3,4281.2,52.98014797]
[1757197379392,49.00347303,4281.3,4281.2,52.98014797]
[1757197379950,49.43827303,4281.3,4281.2,52.98014797]
[1757197380677,50.66827303,4281.3,4281.2,52.98014797]
[1757197381858,51.89827303,4281.3,4281.2,52.98014797]
[1757197382182,51.46347303,4281.3,4281.2,52.98014797]
[1757197383391,52.69347303,4281.3,4281.2,49.10314797]
[1757197383555,52.69347303,4281.3,4281.2,52.98014797]
[1757197384692,53.92347303,4281.3,4281.2,52.98014797]
[1757197385794,53.92347303,4281.3,4281.2,57.20014797]
[1757197386085,55.15347303,4281.3,4281.2,57.20014797]
[1757197386883,57.856181,4281.3,4281.2,46.76735427]